Cogmind - Beta 11.1 @@@ ROGUE MODE // 2022.05.13 @ 16:07:46 Player: Lyra Result: Destroyed by S-43 Plague with Heavy Machine Gun Performance ------------- Evolutions (8) 4000 Regions Visited (20) 4000 Robots Destroyed (251) 1255 Value Destroyed (9545) 9545 Prototype IDs (41) 820 Alien Tech Used (0) 0 Bonus (3580) 3580 TOTAL SCORE: 23200 Bonus ------- High Alert Combat Kills 412 Follower Combat Kills 1170 Entered Garrisons 400 Used RIF Installer 1000 Entered DSFs 500 Aligned with FarCom 300 Friendly Fire -202 Cogmind --------- Core Integrity 0/1450 Matter 23/300 Energy 99/100 System Corruption 40% Temperature Cool (0) Movement Core (50) Location -2/Research Parts ------- > --- POWER (3) -------- (None) > --- PROPULSION (8) --- (None) > --- UTILITY (9) ------ (None) > --- WEAPON (3) ------- (None) > --- INVENTORY (5) ---- Centrium Wheel Advanced Energy Well (4) Improved Cloaking Device Advanced Focal Shield Compact HERF Cannon Peak State ------------ > --- POWER ------------ Antimatter Reactor Light Particle Reactor > --- PROPULSION ------- Combat Antigrav System Combat Antigrav System Combat Linear Gravjet Combat Linear Gravjet Combat Linear Gravjet Combat Linear Gravjet Combat Linear Gravjet Combat Linear Gravjet > --- UTILITY ---------- Coolant Network Large Storage Unit Advanced Energy Well Experimental Melee Analysis Suite Advanced Reaction Control System Improved Phase Shifter Improved Focal Shield Advanced Force Field > --- WEAPON ----------- Chainsword Chainsword Kinetic Spear > --- INVENTORY -------- Advanced Energy Well Structural Scanner Advanced Transmission Jammer Improved Cloaking Device Improved Cloaking Device Layered Medium Armor Plating Advanced Thermal Shield Relay Coupler [NC] Relay Coupler [Grunt] Compact HERF Cannon Matter Neutralizer Smartbomb Launcher Advanced Remote Datajack [Rating: 171] Favorites ----------- Power Reinforced Deuterium Engine Engine Reinforced Deuterium Engine Power Core Light Nuclear Core Reactor Light Particle Reactor Propulsion Carbon-fiber Leg Treads Medium Treads Leg Carbon-fiber Leg Wheel Compact Wheel Hover Unit Combat Antigrav System Flight Unit Xenon Bombardment Thruster Utility Advanced Targeting Computer Device Advanced Heat Sink Storage Large Storage Unit Processor Advanced Targeting Computer Hackware Relay Coupler [Grunt] Protection Light Armor Plating Weapon Wave Gun Energy Gun Wave Gun Energy Cannon Plasma Cannon Ballistic Gun Shotgun Ballistic Cannon Hardcell Cannon Launcher Smartbomb Launcher Special Weapon Field Lobotomy Kit Impact Weapon Great Maul Slashing Weapon Chainsword Piercing Weapon Kinetic Spear Build | -11 -10 -10 -9 -9 -9 -8 -8 -8 -8 -7 -7 -7 -6 -6 -6 -5 -4 -4 -3 -2 ------- Run | Scr Mat Min Mat Min Exi Min Mat Gar Mat Fac Low Low Fac Gar Fac Fac Fac DSF Res Res Slots Evolved 16 | . . . 2 . . . 2 . . 2 . . 2 . . 2 2 . 2 2 Power 2 | . . . . . . . 1 . . . . . . . . . . . . 1 Propulsion 6 | . . . . . . . 1 . . 1 . . 1 . . 1 . . 2 . Utility 7 | . . . 2 . . . . . . 1 . . 1 . . . 2 . . 1 Weapon 1 | . . . . . . . . . . . . . . . . 1 . . . . Parts Attached 424 | 6 10 8 26 13 . . 36 3 30 6 18 . 40 31 16 66 7 11 59 38 Power 48 | 1 1 1 6 1 . . 5 . 5 . 1 . 5 3 3 7 . 1 4 4 Engine 21 | 1 1 1 2 1 . . 2 . 2 . 1 . 4 2 1 2 . . 1 . Core 20 | . . . 4 . . . 3 . 3 . . . 1 1 2 5 . . 1 . Reactor 7 | . . . . . . . . . . . . . . . . . . 1 2 4 Propulsion 99 | 2 3 2 3 3 . . 9 . 10 1 3 . 12 8 3 10 . 6 12 12 Treads 17 | . . . . . . . 3 . 3 1 1 . 4 2 1 2 . . . . Leg 46 | . 3 2 3 3 . . 6 . 7 . 2 . 8 3 . 8 . . . 1 Wheel 9 | 2 . . . . . . . . . . . . . 2 2 . . . 1 2 Hover 25 | . . . . . . . . . . . . . . . . . . 6 10 9 Flight 2 | . . . . . . . . . . . . . . 1 . . . . 1 . Utility 171 | 1 3 4 12 7 . . 7 1 7 2 7 . 15 10 7 27 7 2 32 20 Device 104 | . 2 1 6 6 . . 3 1 4 2 6 . 11 8 3 18 5 2 17 9 Storage 11 | 1 1 . . . . . . . . . . . 1 . . 1 . . 3 4 Processor 12 | . . . 2 . . . . . 1 . . . 1 . 1 2 . . 2 3 Hackware 6 | . . . . . . . . . . . . . . 1 . . 1 . 2 2 Protection 38 | . . 3 4 1 . . 4 . 2 . 1 . 2 1 3 6 1 . 8 2 Artifact . | . . . . . . . . . . . . . . . . . . . . . Weapon 106 | 2 3 1 5 2 . . 15 2 8 3 7 . 8 10 3 22 . 2 11 2 Energy Gun 33 | . . . 1 1 . . 5 . 1 . . . 1 3 . 18 . 1 2 . Energy Cannon 10 | . . . . . . . 7 1 . . . . 1 . . . . . 1 . Ballistic Gun 15 | 2 3 1 3 1 . . . . 4 . . . 1 . . . . . . . Ballistic Cannon 17 | . . . 1 . . . . . . 3 4 . 3 5 1 . . . . . Launcher 9 | . . . . . . . 1 1 1 . 2 . . . 1 1 . . 1 1 Special Weapon 13 | . . . . . . . 1 . 1 . 1 . 2 2 1 1 . 1 2 1 Impact Weapon 2 | . . . . . . . 1 . 1 . . . . . . . . . . . Slashing Weapon 2 | . . . . . . . . . . . . . . . . . . . 2 . Piercing Weapon 5 | . . . . . . . . . . . . . . . . 2 . . 3 . Special Melee Weapon . | . . . . . . . . . . . . . . . . . . . . . Unidentified Prototypes 16 | . . . 4 1 . . 2 . 1 . . . . . . 4 . . 4 . Corrupted Parts 2 | . . . . . . . . . . . 1 . . . . 1 . . . . System Corruption 6 | . . . . . . . . . . . 4 . . . . 2 . . . . Parts Lost 138 | . . 1 6 9 . . 5 1 12 . 6 . 23 18 4 16 . 3 3 31 Power 21 | . . . 1 1 . . 1 . 4 . 1 . 4 1 1 2 . . . 5 Propulsion 49 | . . 1 . 2 . . 1 . 5 . 2 . 7 8 3 5 . 3 1 11 Utility 44 | . . . 3 4 . . 1 1 1 . 2 . 10 6 . 4 . . 2 10 Weapon 24 | . . . 2 2 . . 2 . 2 . 1 . 2 3 . 5 . . . 5 Highest Loss Streak 23 | . . 1 2 8 . . 2 1 4 . 2 . 8 6 4 6 . 3 2 23 To Critical Strikes . | . . . . . . . . . . . . . . . . . . . . . Average Slot Usage (%) 91 | . 95 98 99 81 100 100 98 99 89 89 91 100 83 86 87 91 88 82 89 83 Engine 6 | . 14 14 1 5 11 11 13 9 9 . 4 7 9 6 3 1 5 3 1 . Core 5 | . . . 9 3 . . 4 9 4 15 7 7 2 4 6 9 5 4 . . Treads 3 | . . . . . . . 3 . 4 6 7 7 7 8 4 8 . . . . Leg 17 | . 27 27 21 17 22 22 22 27 20 23 20 23 17 16 16 14 21 5 . . Hover 4 | . . . . . . . . . . . . . . . . . . 18 36 31 Device 18 | . 16 27 13 18 22 22 18 21 19 13 19 23 18 17 21 16 30 22 16 16 Storage 2 | . 7 . . . . . . . . . . . 2 6 6 5 5 5 7 5 Processor 6 | . . . 10 11 11 11 9 9 9 7 7 7 7 7 6 4 . . 3 6 Protection 5 | . . . 19 5 11 11 9 4 4 7 6 7 2 1 4 5 4 2 2 2 Energy Gun 3 | . . . . 7 11 11 8 . . . . . 2 2 . 14 15 12 1 . Energy Cannon 1 | . . . . . . . 7 17 5 . . . 1 . . . . . . . Ballistic Gun 5 | . 28 28 19 11 11 11 1 . 10 1 . . 1 . . . . . . . Ballistic Cannon 3 | . . . 2 . . . . . . 13 10 15 6 9 12 . . . . . Naked Turns 2 | . . . . . . . . . . . . . . . . . . . . 2 Heaviest Build 97 | 11 20 17 24 21 19 19 44 44 43 50 49 44 68 68 66 72 71 70 74 97 Greatest Support 135 | 32 32 20 23 23 23 23 47 47 47 38 38 30 65 60 50 85 65 65 107 135 Greatest Overweight (x) 4 | . 1 1 1 . . . 1 . 2 1 1 1 3 3 4 3 1 4 . 1 Average Overweight (x) . | . . . . . . . . . . 1 . 1 . . 1 . . . . . Largest Inventory Capacity 15 | 8 10 5 5 5 5 5 5 5 5 5 5 5 15 15 15 15 15 15 15 15 Average Capacity 9 | 7 7 5 5 5 5 5 5 5 5 5 5 5 8 15 15 15 15 15 15 14 Most Carried 15 | 4 10 5 5 5 5 5 5 5 5 5 5 5 13 15 15 15 15 15 15 15 Average Carried 8 | 2 7 4 4 4 4 5 4 5 4 4 4 5 6 14 14 14 14 14 14 13 Final Capacity 15 | 8 5 5 5 5 5 5 5 5 5 5 5 5 15 15 15 15 15 15 15 5 Final Carried 15 | 4 5 5 5 5 5 5 5 5 5 5 5 5 13 15 15 15 15 15 15 5 Class Distribution -------------------- 59% | Scavenger-Mutant 26% | Mutant 4% | Scavenger-Tank 3% | Scavenger-Gunner Dominant Class ---------------- Mutant | -10/Materials Mutant | -10/Mines Scavenger-Mutant | -9/Materials Mutant | -9/Mines Mutant | -9/Exiles Mutant | -8/Mines Scavenger-Mutant | -8/Materials Scavenger-Mutant | -8/Garrison Scavenger-Mutant | -8/Materials Scavenger-Mutant | -7/Factory Scavenger-Mutant | -7/Lower Caves Scavenger-Mutant | -7/Lower Caves Scavenger-Mutant | -6/Factory Scavenger-Mutant | -6/Garrison Scavenger-Mutant | -6/Factory Scavenger-Tank | -5/Factory Scavenger-Tank | -4/Factory Scavenger-Sprinter | -4/DSF Mutant | -3/Research Mutant | -2/Research Resources | -11 -10 -10 -9 -9 -9 -8 -8 -8 -8 -7 -7 -7 -6 -6 -6 -5 -4 -4 -3 -2 ----------- Run | Scr Mat Min Mat Min Exi Min Mat Gar Mat Fac Low Low Fac Gar Fac Fac Fac DSF Res Res Matter Collected 7641 | 229 285 267 770 248 . . 429 94 629 72 733 . 890 949 216 896 . 157 708 69 Remotely 46 | . . . . 32 . . . . . . . . 14 . . . . . . . Salvage Created 9930 | . 309 214 847 215 . . 1394 265 1146 66 407 . 1062 751 179 1918 . . 1018 139 Parts 479 | . 21 23 75 15 . . 52 17 59 . 16 . 38 36 12 68 . . 38 9 Haulers Intercepted 7 | . 1 . 2 . . . 1 . 1 . . . . . . 2 . . . . Recyclers Shooed 12 | . 1 . 2 . . . . . 2 . . . 3 . 1 2 . . 1 . Parts Field Recycled 1 | . . . . . . . . . . . . . . . . . . . 1 . Retrieved Matter 3 | . . . . . . . . . . . . . . . . . . . 3 . Parts Self-Destructed 26 | . . . . . . . . . . . 16 10 . . . . . . . . Prevented 1 | . . . . . . . . . . . 1 . . . . . . . . . Kills | -11 -10 -10 -9 -9 -9 -8 -8 -8 -8 -7 -7 -7 -6 -6 -6 -5 -4 -4 -3 -2 ------- Run | Scr Mat Min Mat Min Exi Min Mat Gar Mat Fac Low Low Fac Gar Fac Fac Fac DSF Res Res Combat Hostiles Destroyed 210 | . 9 9 24 14 . . 23 10 19 3 18 . 19 30 3 20 . . 8 1 Melee 13 | . . . . . . . 2 . . . . . . . . 2 . . 8 1 Guns 110 | . 9 9 22 14 . . 14 . 10 . . . 6 11 . 15 . . . . Cannons 67 | . . . 2 . . . 5 7 8 3 8 . 12 19 3 . . . . . AOE 14 | . . . . . . . . 3 . . 10 . . . . 1 . . . . Classes Destroyed 20 | . 4 2 3 2 . . 2 . 1 . . . 2 2 . . . . 1 1 Worker 7 | . . . 1 . . . . . 1 . . . 1 . . 1 . . 3 . Builder 6 | . . . 1 . . . 2 . . . . . 2 . . . . . 1 . Tunneler 3 | . . 1 . . . . . . . . . . . . . . . . 2 . Hauler 7 | . 1 . 2 . . . 1 . 1 . . . . . . 2 . . . . Recycler 15 | . 1 . 2 . . . 1 . 2 . . . 1 . 1 3 . . 4 . Mechanic 1 | . . . . . . . . . . . . . . . . . . . . 1 Drone 1 | . . . . . . . . . . . . . . . . . . . 1 . Watcher 7 | . . . 1 . . . 2 . 1 . . . . . . 2 . . 1 . Swarmer 66 | . 6 6 15 6 . . . 4 3 . 6 . . 14 2 . . . 4 . Cutter 2 | . . . . . . . . . . . . . . 2 . . . . . . Grunt 77 | . 3 2 5 2 . . 13 5 8 2 8 . 13 9 . 7 . . . . Brawler 4 | . . . . . . . 2 . . 1 . . 1 . . . . . . . Duelist 4 | . . . . . . . 2 . . . 2 . . . . . . . . . Sentry 27 | . . 1 4 . . . 6 1 7 . 2 . . 4 . 1 . . 1 . Demolisher 1 | . . . . 1 . . . . . . . . . . . . . . . . Hunter 5 | . . . . . . . . . 1 . . . 1 . . 3 . . . . Programmer 16 | . . . . . . . . . . . . . 3 . 1 9 . . 2 1 Heavy 1 | . . . . . . . . . . . . . 1 . . . . . . . Behemoth 2 | . . . . . . . . . . . . . . 1 . 1 . . . . Assembled 5 | . . . . 5 . . . . . . . . . . . . . . . . Best Kill Streak 11 | . 6 2 7 3 . . 7 4 3 3 11 . 3 5 3 7 . . 6 1 Combat Bots Only 11 | . 6 2 6 3 . . 6 4 3 3 11 . 3 5 3 5 . . 5 1 Max Kills in Single Turn 4 | . 2 1 2 1 . . 2 2 1 1 4 . 1 2 2 2 . . 1 1 Gunslinging 1 | . 1 . 1 . . . . . . . . . . . . . . . . . Exploded 4 | . . . . . . . . 1 . . 4 . . . . 1 . . . . Melee 1 | . . . . . . . 1 . . . . . . . . 1 . . 1 1 Uniques/NPCs Destroyed . | . . . . . . . . . . . . . . . . . . . . . Combat | -11 -10 -10 -9 -9 -9 -8 -8 -8 -8 -7 -7 -7 -6 -6 -6 -5 -4 -4 -3 -2 -------- Run | Scr Mat Min Mat Min Exi Min Mat Gar Mat Fac Low Low Fac Gar Fac Fac Fac DSF Res Res Damage Taken 22430 | . 256 271 605 807 . . 1094 347 1600 232 1363 . 2743 2316 495 2794 . 328 1303 5876 Core 3393 | . 37 41 34 127 . . 192 20 206 16 203 . 297 349 69 235 . . 113 1454 Absorbed by Shields 1979 | . . . 392 124 . . 155 . . 42 426 . 665 . . . . . . 175 Redirected to Shielding 31 | . . . 6 . . . . . . . . . . . 16 9 . . . . Regen/Repaired (Parts) 75 | . . . 75 . . . . . . . . . . . . . . . . . Core Remaining (%) 66 | 100 . 68 . . . 59 . . 24 . . 68 . . 15 76 . 100 91 . Volleys Fired 643 | . 24 19 72 32 . . 68 22 80 12 38 . 87 86 8 83 . 1 7 4 Largest 3 | . 2 2 2 2 . . 2 2 2 2 2 . 2 2 2 3 . 1 3 1 Hottest 243 | . 46 46 58 88 . . 160 160 160 96 96 . 159 145 130 243 . 7 243 10 Shots Fired 1246 | . 49 38 144 59 . . 135 36 154 24 50 1 164 160 13 203 . 1 11 4 Gun 795 | . 49 38 129 59 . . 99 . 93 . . . 72 47 . 203 . . 6 . Cannon 422 | . . . 15 . . . 34 32 59 24 40 1 91 113 12 . . . 1 . Launcher 15 | . . . . . . . 1 4 1 . 9 . . . . . . . . . Special 14 | . . . . . . . 1 . 1 . 1 . 1 . 1 . . 1 4 4 Kinetic 675 | . 49 38 144 41 . . 11 . 89 24 40 1 100 126 12 . . . . . Thermal 516 | . . . . 18 . . 122 32 63 . . . 63 34 . 178 . . 6 . Explosive 15 | . . . . . . . 1 4 1 . 9 . . . . . . . . . Electromagnetic 26 | . . . . . . . . . . . . . . . . 25 . . 1 . Robot Hit Streak 24 | . 11 4 16 8 . . 14 8 14 4 10 . 19 24 6 14 . 1 6 2 Robot Miss Streak 10 | . 7 8 5 8 . . 10 4 3 4 4 1 4 3 2 3 . . . 1 Penetration Max 1 | . . . . . . . . . . 1 . . 1 1 . . . . . . Secondary Targets 12 | . 2 . 5 4 . . . . . . . . . 1 . . . . . . Max Gunslinging Chain 1 | . 1 . 1 1 . . . . . . . . . 1 . . . . . . Shots Hit Robots 886 | . 31 19 96 46 . . 108 18 106 15 30 . 120 106 8 141 . 1 36 5 Core Hits 454 | . 19 14 41 34 . . 57 17 45 12 35 . 47 46 6 60 . . 19 2 Critical Kills 3 | . . . 1 . . . 1 . . . . . 1 . . . . . . . Critical Parts Destroyed 4 | . . . 1 . . . 2 . 1 . . . . . . . . . . . Critical Strikes 34 | . . . 2 . . . 11 . 2 . . . 7 3 . 6 . . 3 . Burn 16 | . . . . . . . 8 . 1 . . . 3 . . 4 . . . . Destroy 4 | . . . 2 . . . . . 1 . . . 1 . . . . . . . Blast 6 | . . . . . . . . . . . . . 3 3 . . . . . . Smash 3 | . . . . . . . 3 . . . . . . . . . . . . . Impale 5 | . . . . . . . . . . . . . . . . 2 . . 3 . Melee Attacks 121 | . . . . . . . 6 . 4 . . . . . . 11 . . 68 32 Impact 10 | . . . . . . . 6 . 4 . . . . . . . . . . . Slashing 15 | . . . . . . . . . . . . . . . . . . . 12 3 Piercing 96 | . . . . . . . . . . . . . . . . 11 . . 56 29 Sneak Attacks 11 | . . . . . . . 1 . . . . . . . . . . . 9 1 Combat Hostiles 1 | . . . . . . . . . . . . . . . . . . . 1 . Follow-up Attacks 6 | . . . . . . . . . . . . . . . . . . . 6 . Damage Inflicted 23302 | . 498 303 1469 668 . . 2290 683 2271 350 1871 24 3114 3481 361 3865 . . 1854 200 Guns 10761 | . 498 303 1302 668 . . 1366 . 1045 . . . 1213 797 . 3475 . . 94 . Cannons 7905 | . . . 146 . . . 592 405 976 350 700 24 1685 2684 343 . . . . . Explosions 1808 | . . . . . . . . 278 96 . 1167 . 192 . . 75 . . . . Melee 2622 | . . . . . . . 283 . 136 . . . . . . 244 . . 1760 199 Ramming 206 | . . . 21 . . . 49 . 18 . 4 . 24 . 18 71 . . . 1 Kinetic 9994 | . 498 303 1448 447 . . 117 . 1001 350 700 24 1884 2879 343 . . . . . Thermal 8364 | . . . . 221 . . 1841 405 1020 . . . 1014 602 . 3167 . . 94 . Explosive 1808 | . . . . . . . . 278 96 . 1167 . 192 . . 75 . . . . Electromagnetic 308 | . . . . . . . . . . . . . . . . 308 . . . . Impact 419 | . . . . . . . 283 . 136 . . . . . . . . . . . Slashing 198 | . . . . . . . . . . . . . . . . . . . 198 . Piercing 2005 | . . . . . . . . . . . . . . . . 244 . . 1562 199 Highest Corruption 40 | . 2 2 . . . . 3 3 3 2 6 6 11 11 11 23 . . 5 40 Average Corruption 6 | . 2 2 . . . . 3 3 3 2 4 6 7 11 11 10 . . 2 11 Corruption Purged 5 | . . . . . . . . . . . . . . . . . . . 5 . Corruption Blocked . | . . . . . . . . . . . . . . . . . . . . . Effects 320 | . 8 8 . . . . 29 6 22 2 27 7 36 73 22 64 . . 2 14 Message Errors 83 | . 2 3 . . . . 9 4 8 . 6 3 10 23 3 10 . . 1 1 Matter Fused 87 | . 2 1 . . . . 10 1 5 2 7 . 6 17 9 21 . . 1 5 Heat Flow Errors 37 | . 1 2 . . . . 2 . 1 . 3 2 4 8 4 9 . . . 1 Energy Discharges 35 | . 2 1 . . . . 4 . 4 . 4 1 2 5 3 7 . . . 2 Parts Rejected 2 | . . . . . . . . . . . 1 . 1 . . . . . . . Data Loss (minor) 30 | . . . . . . . 1 1 2 . 2 . 6 11 2 5 . . . . Data Loss (major) 18 | . . 1 . . . . . . 1 . 2 . 4 6 1 1 . . . 2 Misfires 12 | . 1 . . . . . 2 . 1 . . 1 1 1 . 5 . . . . Alerts 6 | . . . . . . . . . . . 1 . 1 1 . 3 . . . . Misdirections 3 | . . . . . . . . . . . . . . . . . . . . 3 Weapon Failures 7 | . . . . . . . 1 . . . 1 . 1 1 . 3 . . . . Overload Shots . | . . . . . . . . . . . . . . . . . . . . . Overflow Damage 815 | . . . . . . . 143 . 91 . 86 . 107 85 27 73 . . 203 . Projectiles 279 | . . . . . . . . . 41 . 46 . 80 85 27 . . . . . Explosions 65 | . . . . . . . . . . . 40 . 25 . . . . . . . Melee 471 | . . . . . . . 143 . 50 . . . 2 . . 73 . . 203 . Knockbacks 66 | . . . . . . . . . . 5 6 . 15 33 6 1 . . . . Impact 3 | . . . . . . . . . . . . . 1 . 1 1 . . . . Kinetic 55 | . . . . . . . . . . 3 6 . 14 28 4 . . . . . Secondary 8 | . . . . . . . . . . 2 . . . 5 1 . . . . . Self-Inflicted Damage 347 | . . . . . . . . 29 . . 164 . 154 . . . . . . . Shots 8 | . . . . . . . . 1 . . 5 . 2 . . . . . . . Rammed 9 | . . . . . . . . . 1 . . . 8 . . . . . . . Targets Rammed 47 | . . . 4 . . . 4 . 4 . 1 . 14 . 6 12 . . . 2 Kicked 38 | . . . 4 . . . 4 . 3 . 1 . 6 . 6 12 . . . 2 Crushed . | . . . . . . . . . . . . . . . . . . . . . Highest Temperature 540 | . 225 241 200 53 . . 324 379 188 539 367 277 540 227 212 530 . 177 315 340 Average Temperature 124 | . 78 124 37 20 . . 103 160 50 199 141 108 149 58 51 197 . 87 84 120 Received Heat Transfer 3713 | . 45 114 150 18 . . 453 144 603 60 331 . 591 630 12 321 . 45 48 148 Effects 53 | . . . . . . . 1 1 . 13 4 . 15 . . 17 . . . 2 Shutdowns 19 | . . . . . . . . 1 . 4 . . 4 . . 10 . . . . Energy Bleed 5 | . . . . . . . 1 . . . 1 . 1 . . 1 . . . 1 Interference 11 | . . . . . . . . . . 1 3 . 7 . . . . . . . Matter Decay 3 | . . . . . . . . . . 2 . . 1 . . . . . . . Short Circuit 5 | . . . . . . . . . . 1 . . 1 . . 3 . . . . Damage (minor) 4 | . . . . . . . . . . . . . . . . 3 . . . 1 Damage (major) 5 | . . . . . . . . . . 5 . . . . . . . . . . Damage (core) 1 | . . . . . . . . . . . . . 1 . . . . . . . Siege Activations . | . . . . . . . . . . . . . . . . . . . . . Robots Corrupted 1 | . . . . . . . . . . . . . . . . 1 . . . . Combat Hostiles 1 | . . . . . . . . . . . . . . . . 1 . . . . Parts Fried 7 | . . . . . . . 3 . 1 . . . . . . 3 . . . . Impact Corruptions 8 | . . . . . . . 3 . 2 . . . 1 1 1 . . . . . Robots Melted 2 | . . . . . . . . . . . . . 1 . . 1 . . . . Combat Hostiles 2 | . . . . . . . . . . . . . 1 . . 1 . . . . Parts Melted 35 | . . . . . . . 11 1 8 . . . 1 . . 14 . . . . Heat Transferred 15794 | . . . . 280 . . 4315 800 2085 . . . 1954 1283 . 4929 . . 148 . Parts Sabotaged 2 | . . . . . . . . . . . . . . . . . . . . 2 Parts Stolen . | . . . . . . . . . . . . . . . . . . . . . Parts Stripped . | . . . . . . . . . . . . . . . . . . . . . Power Chain Reactions . | . . . . . . . . . . . . . . . . . . . . . Missiles Intercepted . | . . . . . . . . . . . . . . . . . . . . . Alert | -11 -10 -10 -9 -9 -9 -8 -8 -8 -8 -7 -7 -7 -6 -6 -6 -5 -4 -4 -3 -2 ------- Run | Scr Mat Min Mat Min Exi Min Mat Gar Mat Fac Low Low Fac Gar Fac Fac Fac DSF Res Res Peak Influence 824 | . 210 283 609 284 . . 447 535 530 156 . . 356 824 483 370 140 98 270 349 Initial 432 | . . 2 59 109 . . . 235 260 144 . . 79 170 432 236 135 98 37 151 Average 257 | . 103 122 320 142 . . 255 392 393 97 . . 173 514 404 236 135 75 80 222 Maximum Alert Level 3 | . 1 1 2 1 . . 2 2 2 . . . 1 3 2 1 . . 1 1 Low Security (%) 42 | 100 92 79 21 55 . 100 34 . . 100 . . 61 3 . 31 100 100 92 47 Level 1 37 | . 7 20 50 44 . . 54 56 49 . . . 38 30 34 68 . . 7 52 Level 2 15 | . . . 28 . . . 10 43 50 . . . . 37 65 . . . . . Level 3 3 | . . . . . . . . . . . . . . 28 . . . . . . Level 4 . | . . . . . . . . . . . . . . . . . . . . . Level 5 . | . . . . . . . . . . . . . . . . . . . . . High Security . | . . . . . . . . . . . . . . . . . . . . . Max Security . | . . . . . . . . . . . . . . . . . . . . . Squads Dispatched 38 | . 4 . 2 . . . 7 . 3 1 . . 9 . 1 5 . . 4 2 Investigation 4 | . 2 . 1 . . . . . 1 . . . . . . . . . . . Extermination 11 | . . . . . . . . . . 1 . . 3 . 1 3 . . 2 1 Reinforcement 19 | . 2 . 1 . . . 4 . 2 . . . 6 . . 2 . . 1 1 Assault . | . . . . . . . . . . . . . . . . . . . . . Garrison 4 | . . . . . . . 3 . . . . . . . . . . . 1 . Intercept . | . . . . . . . . . . . . . . . . . . . . . Searches Triggered . | . . . . . . . . . . . . . . . . . . . . . Construction Impeded 2 | . . . . . . . . . . . . . 2 . . . . . . . Haulers Reinforced 2 | . . . . . . . . . . . . . . . . 2 . . . . Active Scanning Responses . | . . . . . . . . . . . . . . . . . . . . . Cargo Convoy Interrupts 1 | . . . . . . . . . . . . . . . . . . . . 1 Stealth | -11 -10 -10 -9 -9 -9 -8 -8 -8 -8 -7 -7 -7 -6 -6 -6 -5 -4 -4 -3 -2 --------- Run | Scr Mat Min Mat Min Exi Min Mat Gar Mat Fac Low Low Fac Gar Fac Fac Fac DSF Res Res Distress Signals 24 | . 1 . 6 . . . 4 . 2 . . . 4 . 1 1 . . 1 4 Communications Jammed . | . . . . . . . . . . . . . . . . . . . . . Distress Signals . | . . . . . . . . . . . . . . . . . . . . . Times Spotted 410 | . 20 16 46 23 . . 36 10 34 7 22 2 32 34 8 28 . 16 31 45 Peak Tracking Total 25 | . 6 3 7 6 . . 4 4 5 3 9 2 5 7 4 5 . 8 10 25 Tactical Retreats 42 | . . 1 6 2 . . 2 . 2 . 2 . 3 3 1 . . 1 7 12 Traps | -11 -10 -10 -9 -9 -9 -8 -8 -8 -8 -7 -7 -7 -6 -6 -6 -5 -4 -4 -3 -2 ------- Run | Scr Mat Min Mat Min Exi Min Mat Gar Mat Fac Low Low Fac Gar Fac Fac Fac DSF Res Res Traps Triggered 21 | . 6 . . . . . 2 2 1 1 . . . 5 . 1 . 1 1 1 Indirectly . | . . . . . . . . . . . . . . . . . . . . . Trap Hack Attempts . | . . . . . . . . . . . . . . . . . . . . . Triggered . | . . . . . . . . . . . . . . . . . . . . . Disarmed . | . . . . . . . . . . . . . . . . . . . . . Reprogrammed . | . . . . . . . . . . . . . . . . . . . . . Reused . | . . . . . . . . . . . . . . . . . . . . . Traps Extracted . | . . . . . . . . . . . . . . . . . . . . . Installed . | . . . . . . . . . . . . . . . . . . . . . Triggered 3 | . . . . . . . . . . . 1 . . . . . . . . 2 Machines | -11 -10 -10 -9 -9 -9 -8 -8 -8 -8 -7 -7 -7 -6 -6 -6 -5 -4 -4 -3 -2 ---------- Run | Scr Mat Min Mat Min Exi Min Mat Gar Mat Fac Low Low Fac Gar Fac Fac Fac DSF Res Res Machines Disabled 22 | . . . . . . . 1 2 1 2 . . 4 3 6 3 . . . . Max in Single Turn 3 | . . . . . . . 1 1 1 2 . . 3 1 . 1 . . . . Garrison Access 4 | . . . . . . . . . . . . . . . . . . . 2 2 Garrison Relay 4 | . . . . . . . . 1 . . . . . 3 . . . . . . Machines Sabotaged . | . . . . . . . . . . . . . . . . . . . . . Garrisons Compromised 1 | . . . . . . . . . . . . . . . . . . . . 1 Overloaded Fab Kills . | . . . . . . . . . . . . . . . . . . . . . Hacking | -11 -10 -10 -9 -9 -9 -8 -8 -8 -8 -7 -7 -7 -6 -6 -6 -5 -4 -4 -3 -2 --------- Run | Scr Mat Min Mat Min Exi Min Mat Gar Mat Fac Low Low Fac Gar Fac Fac Fac DSF Res Res Machines Accessed 39 | . 2 . 6 . 1 . 4 . 3 2 . . 3 . 5 1 1 . 8 3 Terminals 20 | . 2 . 4 . . . 2 . 3 1 . . 2 . 1 . 1 . 4 . Fabricators 5 | . . . . . . . . . . 1 . . . . 3 . . . 1 . Repair Stations 4 | . . . 1 . . . 1 . . . . . . . 1 1 . . . . Recycling Units 2 | . . . 1 . . . . . . . . . . . . . . . 1 . Scanalyzers 1 | . . . . . . . . . . . . . . . . . . . . 1 Garrison Access 6 | . . . . . . . 1 . . . . . 1 . . . . . 2 2 Total Hacks 66 | . 3 . 17 . 1 . 5 . 6 3 . . 7 . 5 2 1 . 13 3 Successful 42 | . 2 . 10 . 1 . 4 . 4 3 . . 6 . 2 1 1 . 6 2 Failed 24 | . 1 . 7 . . . 1 . 2 . . . 1 . 3 1 . . 7 1 Catastrophic 8 | . . . . . . . . . 1 . . . . . 2 1 . . 4 . Database Lockouts . | . . . . . . . . . . . . . . . . . . . . . Manual 13 | . 1 . 1 . 1 . . . 3 1 . . . . 1 . . . 5 . Terminals 40 | . 3 . 12 . . . 3 . 6 2 . . 5 . 1 . 1 . 7 . Fabricators 6 | . . . . . . . . . . 1 . . . . 3 . . . 2 . Repair Stations 7 | . . . 3 . . . 1 . . . . . . . 1 2 . . . . Recycling Units 4 | . . . 2 . . . . . . . . . . . . . . . 2 . Scanalyzers 1 | . . . . . . . . . . . . . . . . . . . . 1 Garrison Access 7 | . . . . . . . 1 . . . . . 2 . . . . . 2 2 Terminal Hacks 24 | . 2 . 6 . 1 . 2 . 4 2 . . 4 . . . 1 . 2 . Record 1 | . . . . . . . . . 1 . . . . . . . . . . . Prototype ID Bank 1 | . . . . . . . . . 1 . . . . . . . . . . . Open DSF 1 | . . . . . . . . . . . . . . . . . 1 . . . Level Access Points 1 | . . . 1 . . . . . . . . . . . . . . . . . Branch Access Points 4 | . 1 . . . . . . . . 1 . . 1 . . . . . 1 . Emergency Access Points 2 | . . . . . . . . . . 1 . . 1 . . . . . . . Repair Station Index 1 | . . . . . . . 1 . . . . . . . . . . . . . Alert Level 4 | . . . 2 . . . 1 . 1 . . . . . . . . . . . Unreport Threat 3 | . . . 2 . . . . . 1 . . . . . . . . . . . Locate Traps 2 | . . . 1 . . . . . . . . . . . . . . . 1 . Recall Investigation 1 | . 1 . . . . . . . . . . . . . . . . . . . Hauler Manifests 1 | . . . . . . . . . . . . . 1 . . . . . . . Zone Layout 1 | . . . . . . . . . . . . . 1 . . . . . . . EX-Prototype ID Bank 1 | . . . . . 1 . . . . . . . . . . . . . . . Fabricator Hacks 4 | . . . . . . . . . . 1 . . . . 2 . . . 1 . Network Status 4 | . . . . . . . . . . 1 . . . . 2 . . . 1 . Repair Station Hacks 4 | . . . 2 . . . 1 . . . . . . . . 1 . . . . Scan Component 2 | . . . 1 . . . . . . . . . . . . 1 . . . . Repair 1 | . . . 1 . . . . . . . . . . . . . . . . . Refit 1 | . . . . . . . 1 . . . . . . . . . . . . . Recycling Unit Hacks 1 | . . . 1 . . . . . . . . . . . . . . . . . Retrieve Components 1 | . . . 1 . . . . . . . . . . . . . . . . . Scanalyzer . | . . . . . . . . . . . . . . . . . . . . . Garrison Access Hacks 7 | . . . . . . . 1 . . . . . 2 . . . . . 2 2 Unlock Access 2 | . . . . . . . 1 . . . . . 1 . . . . . . . Seal Access 4 | . . . . . . . . . . . . . . . . . . . 2 2 Coupler Status 1 | . . . . . . . . . . . . . 1 . . . . . . . Unauthorized Hacks 2 | . . . 1 . . . . . . . . . . . . . . . 1 . Terminals . | . . . . . . . . . . . . . . . . . . . . . Fabricators 1 | . . . . . . . . . . . . . . . . . . . 1 . Liberate 1 | . . . . . . . . . . . . . . . . . . . 1 . Repair Stations . | . . . . . . . . . . . . . . . . . . . . . Recycling Units 1 | . . . 1 . . . . . . . . . . . . . . . . . Reject 1 | . . . 1 . . . . . . . . . . . . . . . . . Scanalyzers . | . . . . . . . . . . . . . . . . . . . . . Garrison Access . | . . . . . . . . . . . . . . . . . . . . . Data Cores Recovered . | . . . . . . . . . . . . . . . . . . . . . Used . | . . . . . . . . . . . . . . . . . . . . . Hacking Detections 21 | . . . 4 . . . 2 . 2 . . . 2 . 4 1 . . 5 1 Full Trace Events 1 | . . . 1 . . . . . . . . . . . . . . . . . Feedback Events . | . . . . . . . . . . . . . . . . . . . . . Feedback Blocked . | . . . . . . . . . . . . . . . . . . . . . Robot Schematics Acquired . | . . . . . . . . . . . . . . . . . . . . . Robots Built . | . . . . . . . . . . . . . . . . . . . . . Authchips . | . . . . . . . . . . . . . . . . . . . . . Time . | . . . . . . . . . . . . . . . . . . . . . Total Robot Build Rating . | . . . . . . . . . . . . . . . . . . . . . Part Schematics Acquired . | . . . . . . . . . . . . . . . . . . . . . Parts Built . | . . . . . . . . . . . . . . . . . . . . . Authchips . | . . . . . . . . . . . . . . . . . . . . . Time . | . . . . . . . . . . . . . . . . . . . . . Total Part Build Rating . | . . . . . . . . . . . . . . . . . . . . . Parts Repaired 1 | . . . 1 . . . . . . . . . . . . . . . . . Time 26 | . . . 26 . . . . . . . . . . . . . . . . . Parts Recycled . | . . . . . . . . . . . . . . . . . . . . . Recycled Matter . | . . . . . . . . . . . . . . . . . . . . . Retrieved Matter . | . . . . . . . . . . . . . . . . . . . . . Retrieved Components 10 | . . . 10 . . . . . . . . . . . . . . . . . Parts Scanalyzed . | . . . . . . . . . . . . . . . . . . . . . Part Schematics Acquired . | . . . . . . . . . . . . . . . . . . . . . Parts Damaged . | . . . . . . . . . . . . . . . . . . . . . Bothacking | -11 -10 -10 -9 -9 -9 -8 -8 -8 -8 -7 -7 -7 -6 -6 -6 -5 -4 -4 -3 -2 ------------ Run | Scr Mat Min Mat Min Exi Min Mat Gar Mat Fac Low Low Fac Gar Fac Fac Fac DSF Res Res Used RIF Installer 2 | . . . . . . . . 1 . . . . . 1 . . . . . . Coupler Efficiency 1 | . . . . . . . . . . . . . . 1 . . . . . . Robots Hacked 5 | . . . . . . . . . . . . . . . . . . 1 3 1 Non-combat 3 | . . . . . . . . . . . . . . . . . . . 3 . Combat 2 | . . . . . . . . . . . . . . . . . . 1 . 1 Robot Hacks Applied 5 | . . . . . . . . . . . . . . . . . . 1 3 1 randomize_corridors 1 | . . . . . . . . . . . . . . . . . . . 1 . map_route 2 | . . . . . . . . . . . . . . . . . . . 2 . formatsys_high 2 | . . . . . . . . . . . . . . . . . . 1 . 1 Relay Couplers Released 21 | . . . . . . . . 5 . . . . . 12 . . . . 3 1 Machine Destruction 21 | . . . . . . . . 5 . . . . . 12 . . . . 3 1 Attached 4 | . . . . . . . . . . . . . . 1 . . 1 . 1 1 Fabnet Peak Effective % . | . . . . . . . . . . . . . . . . . . . . . Robots Rewired 5 | . . . . . . . . . . . 2 . . 3 . . . . . . Allies Hacked . | . . . . . . . . . . . . . . . . . . . . . Hacks Repelled . | . . . . . . . . . . . . . . . . . . . . . Allies | -11 -10 -10 -9 -9 -9 -8 -8 -8 -8 -7 -7 -7 -6 -6 -6 -5 -4 -4 -3 -2 -------- Run | Scr Mat Min Mat Min Exi Min Mat Gar Mat Fac Low Low Fac Gar Fac Fac Fac DSF Res Res Total Allies 18 | . . 3 . . . . 1 . 1 . 3 . 1 3 1 . . 1 3 1 Largest Group 3 | . . 3 3 . . . 1 . 1 . 2 1 2 3 1 1 . 1 3 1 Highest-Rated Group 175 | . . 40 40 . . . 90 . 90 . 85 85 175 123 85 85 . 137 141 58 Highest-Rated Ally 137 | . . 16 16 . . . 90 . 90 . 85 85 90 41 85 85 . 137 47 58 Total Orders . | . . . . . . . . . . . . . . . . . . . . . Ally Attacks 185 | . . 44 27 . . . 17 . 9 . 8 6 21 12 4 9 . 8 19 1 Total Damage 5714 | . . 443 239 . . . 521 . 347 . 218 315 974 458 576 326 . 675 604 18 Kills 44 | . . 5 4 . . . 6 . 4 . 2 4 4 . 4 4 . 5 2 . Allies Corrupted . | . . . . . . . . . . . . . . . . . . . . . Allies Melted 2 | . . . . . . . . . 1 . . . 1 . . . . . . . Field Lobotomies 5 | . . . . . . . 1 . 1 . 1 . 1 . 1 . . . . . Intel | -11 -10 -10 -9 -9 -9 -8 -8 -8 -8 -7 -7 -7 -6 -6 -6 -5 -4 -4 -3 -2 ------- Run | Scr Mat Min Mat Min Exi Min Mat Gar Mat Fac Low Low Fac Gar Fac Fac Fac DSF Res Res Robot Analysis Total . | . . . . . . . . . . . . . . . . . . . . . Derelict Logs Recovered 5 | . . 1 . 3 . . . . . . 1 . . . . . . . . . Drone Launches . | . . . . . . . . . . . . . . . . . . . . . Drone Recoveries . | . . . . . . . . . . . . . . . . . . . . . Exploration | -11 -10 -10 -9 -9 -9 -8 -8 -8 -8 -7 -7 -7 -6 -6 -6 -5 -4 -4 -3 -2 ------------- Run | Scr Mat Min Mat Min Exi Min Mat Gar Mat Fac Low Low Fac Gar Fac Fac Fac DSF Res Res Turns Passed 17867 | 55 864 709 1381 656 249 27 1983 285 1336 924 957 253 1335 1983 688 1866 139 134 1280 763 Spaces Moved 11411 | 44 619 512 732 584 207 23 1142 174 584 454 438 134 545 811 351 1063 69 181 1616 1128 Core 252 | 3 . . . 236 . . . . . . . . . . . . . . . 13 Treads 770 | . . . . . . . 123 . 14 14 . . 107 246 6 260 . . . . Legs 6939 | . 614 512 732 348 207 23 1019 174 570 440 438 134 438 429 276 490 69 20 . 6 Wheels 581 | 41 5 . . . . . . . . . . . . 136 69 313 . . . 17 Hover 2869 | . . . . . . . . . . . . . . . . . . 161 1616 1092 Flight . | . . . . . . . . . . . . . . . . . . . . . Fastest Speed 20 | 50 100 120 120 50 120 120 120 123 120 190 120 190 120 115 105 105 120 20 20 34 Average Speed 120 | 96 120 121 140 91 120 120 136 123 169 191 188 190 172 183 178 137 185 47 32 43 Slowest Speed 410 | 100 190 190 190 120 120 120 240 123 260 240 190 190 410 320 330 330 190 400 44 148 Overloaded Moves . | . . . . . . . . . . . . . . . . . . . . . Propulsion Burnouts . | . . . . . . . . . . . . . . . . . . . . . Robots Hopped . | . . . . . . . . . . . . . . . . . . . . . Cave-ins Triggered . | . . . . . . . . . . . . . . . . . . . . . Exploration Rate (%) 44 | 2 83 91 60 97 60 14 62 34 51 17 64 18 9 81 11 19 2 89 32 35 Regions Visited 20 Branch Regions 6 Pre-discovered Areas 1 | . . . . 1 . . . . . . . . . . . . . . . . Known Exits Taken 9 | . 1 . . 1 . 1 1 . 1 1 1 . 1 . . . 1 . . . Unknown Exits Taken 8 | 1 . 1 1 . 1 . . . . . . 1 . . 1 1 . . 1 . Scrap Searched 7 | . . 1 . 3 . . . . . . 3 . . . . . . . . . Spaces Dug 45 | . . . . . . . . . . . . . . . . . . . 20 25 Terrain Destroyed 305 | . . . . . . . 20 24 30 6 75 . 72 19 4 10 . . 20 25 Melee 45 | . . . . . . . . . . . . . . . . . . . 20 25 Projectile 91 | . . . . . . . 9 . 19 6 7 . 27 19 4 . . . . . AOE 169 | . . . . . . . 11 24 11 . 68 . 45 . . 10 . . . . Terrain Rammed . | . . . . . . . . . . . . . . . . . . . . . Walls Destroyed . | . . . . . . . . . . . . . . . . . . . . . Machines Disabled . | . . . . . . . . . . . . . . . . . . . . . Actions | -11 -10 -10 -9 -9 -9 -8 -8 -8 -8 -7 -7 -7 -6 -6 -6 -5 -4 -4 -3 -2 --------- Run | Scr Mat Min Mat Min Exi Min Mat Gar Mat Fac Low Low Fac Gar Fac Fac Fac DSF Res Res Total 14183 | 53 693 560 936 642 208 22 1419 207 782 486 513 133 746 1138 389 1329 79 227 2269 1352 Wait 1120 | . 19 13 66 9 . . 132 . 62 8 . . 34 148 . 14 . 23 465 127 Move 11389 | 43 618 511 731 583 206 22 1141 172 583 453 437 133 544 809 350 1062 68 180 1615 1128 Hop . | . . . . . . . . . . . . . . . . . . . . . Pick Up 155 | 4 13 1 14 3 1 . 6 . 5 3 2 . 21 22 2 29 2 . 20 7 Fast Attach 221 | 6 6 5 15 6 . . 17 1 18 3 6 . 18 13 10 38 1 9 32 17 Attach 69 | . 4 . 5 4 . . 5 . 2 2 2 . 11 10 . 10 3 . 5 6 Detach 13 | . . . . 1 . . 1 . 1 . . . 1 . . . 1 3 3 2 Swap 135 | . . 3 7 3 . . 14 2 10 1 10 . 11 8 6 18 3 2 22 15 Drop 232 | . 9 8 22 1 1 . 25 . 13 4 1 . 5 16 7 52 1 8 44 15 Fire 643 | . 24 19 72 32 . . 68 22 80 12 38 . 87 86 8 83 . 1 7 4 Melee 106 | . . . . . . . 6 . 4 . . . . . . 11 . . 56 29 Ram . | . . . . . . . . . . . . . . . . . . . . . Kick 38 | . . . 4 . . . 4 . 3 . 1 . 6 . 6 12 . . . 2 Crush 9 | . . . . . . . . . 1 . . . 8 . . . . . . . Escape Stasis 20 | . . . . . . . . 10 . . . . . 10 . . . . . . Rewire 33 | . . . . . . . . . . . 16 . . 16 . . . 1 . . Trap . | . . . . . . . . . . . . . . . . . . . . . Miscellaneous . | . . . . . . . . . . . . . . . . . . . . . Route ------- -11/Scrapyard -10/Materials (discovered 3 exits: *Mat x2 / *Min) -10/Mines -9/Materials (discovered 4 exits: *Mat x3 / [*Min]) -9/Mines (discovered 3 exits: *Mat x2 / *Exi) -9/Exiles -8/Mines -8/Materials (discovered 3 exits: *Fac x2 / Gar) -8/Garrison -8/Materials (discovered 2 exits: *Fac x2) -7/Factory (discovered 4 exits: Sto x2 / *Low x2) -7/Lower Caves -7/Lower Caves -6/Factory (discovered 5 exits: Low x2 / Ext x2 / Gar) -6/Garrison (discovered 3 exits: *Fac x3) -6/Factory -5/Factory -4/Factory -4/DSF -3/Research (discovered 3 exits: *Res / Qua x2) -2/Research History --------- Turn | Location | Event 24 | -11/Scrapyard | Discovered new exit (range 15) 56 | -11/Scrapyard | Entered Materials 312 | -10/Materials | Build established: Mutant 478 | -10/Materials | Discovered new exit (range 14) 512 | -10/Materials | Discovered new exit (range 15) 757 | -10/Materials | Discovered new exit (range 3) 860 | -10/Materials | Identified exit to Mines 920 | -10/Materials | Entered Mines 1119 | -10/Mines | Assisted by bots powering up and referring to "LRC-V3" 1160 | -10/Mines | Learned Materials trap positions 1563 | -10/Mines | Discovered new exit (range 7) 1588 | -10/Mines | Joined a pair of Derelicts in attacking an 0b10 outpost 1629 | -10/Mines | Entered Materials 1629 | -9/Materials | Accompanied by 3 allies 1629 | -9/Materials | Evolved 2 slots: Utility x2 1630 | -9/Materials | Loaded intel: 22 trap records 1651 | -9/Materials | Build established: Scavenger-Mutant 1703 | -9/Materials | Repaired Aluminum Leg 1847 | -9/Materials | Identified exit to Materials 2832 | -9/Materials | Build established: Mutant 2991 | -9/Materials | Discovered new exit (range 14) 3010 | -9/Materials | Entered Mines 3153 | -9/Mines | Received a Rocket Launcher from a helpful Derelict 3169 | -9/Mines | Learned location of 1 exit from Materials 3174 | -9/Mines | Assembled infested the area 3177 | -9/Mines | Learned 2 Materials zone layouts 3179 | -9/Mines | Assisted by a Guerilla fighting off Assembled 3228 | -9/Mines | Discovered exit to Materials (range 4) 3248 | -9/Mines | Lost 8 parts (1p2n3u2w) 3251 | -9/Mines | Found a damaged Exp. Sensor Array with a note attached 3252 | -9/Mines | Found Prototype Device 3260 | -9/Mines | Learned location of Storage (-7) 3330 | -9/Mines | Discovered exit to Materials (range 3) 3475 | -9/Mines | Identified exit to Exiles 3561 | -9/Mines | Identified Exp. Sensor Array 3661 | -9/Mines | Deemed a non-threat by the Exiles lab entrance 3666 | -9/Mines | Entered Exiles 3696 | -9/Exiles | Met 8R-AWN 3719 | -9/Exiles | Met EX-HEX 3752 | -9/Exiles | Met EX-BIN 3766 | -9/Exiles | Aligned with FarCom system 3767 | -9/Exiles | Given EX-Vault access code 3795 | -9/Exiles | Opened EX-Vault 3804 | -9/Exiles | Found Field Lobotomy Kit 3829 | -9/Exiles | Warned to stay clear of 0b10 Research branches 3861 | -9/Exiles | Met EX-DEC 3904 | -9/Exiles | Discovered new exit (range 11) 3915 | -9/Exiles | Left Exiles lab with Field Lobotomy Kit 3915 | -9/Exiles | Entered Mines 3924 | -8/Mines | Discovered exit to Materials (range 15) 3942 | -8/Mines | Entered Materials 3942 | -8/Materials | Evolved 2 slots: Power x1, Propulsion x1 3943 | -8/Materials | Identified exit to Factory 4402 | -8/Materials | Garrison activated, responded to threat 4735 | -8/Materials | Assimilated H-61 Shepherd with FLK Orb 5049 | -8/Materials | Discovered exit to Factory (range 14) 5254 | -8/Materials | Build established: Scavenger-Mutant 5924 | -8/Materials | Identified exit to Garrison 5925 | -8/Materials | Entered Garrison 5932 | -8/Garrison | Installed Relay Interface Framework 5968 | -8/Garrison | Triggered checkpoint 5982 | -8/Garrison | Garrison Relay disabled 6039 | -8/Garrison | Triggered checkpoint 6062 | -8/Garrison | Triggered checkpoint 6198 | -8/Garrison | Discovered new exit (range 8) 6210 | -8/Garrison | Entered Materials 6655 | -8/Materials | Core integrity fell below 50% 6697 | -8/Materials | Lost 4 parts (1p1n2w) 7059 | -8/Materials | Assimilated H-61 Shepherd with FLK Orb 7075 | -8/Materials | Discovered exit to Factory (range 8) 7518 | -8/Materials | Discovered exit to Factory (range 16) 7546 | -8/Materials | Entered Factory 7546 | -7/Factory | Evolved 2 slots: Propulsion x1, Utility x1 7883 | -7/Factory | Identified exit to Storage 7883 | -7/Factory | Identified exit to Lower Caves 8470 | -7/Factory | Entered Lower Caves 8476 | -7/Lower Caves | Attracted the attention of an 0b10 outpost 8533 | -7/Lower Caves | Destroyed 11 combat bots 9020 | -7/Lower Caves | Encountered a Warlord checkpoint 9114 | -7/Lower Caves | Identified exit to Lower Caves 9118 | -7/Lower Caves | Attracted the attention of an 0b10 checkpoint 9339 | -7/Lower Caves | Spotted B-75 Beast 9343 | -7/Lower Caves | Assimilated B-75 Beast with FLK Orb 9427 | -7/Lower Caves | Entered another Lower Caves area 9427 | -7/Lower Caves | Accompanied by 1 ally 9621 | -7/Lower Caves | Discovered new exit (range 15) 9680 | -7/Lower Caves | Entered Factory 9680 | -6/Factory | Accompanied by 1 ally 9680 | -6/Factory | Evolved 2 slots: Propulsion x1, Utility x1 9830 | -6/Factory | Assimilated H-61 Shepherd with FLK Orb 10267 | -6/Factory | Lost 3 parts (1p1n1u) 10381 | -6/Factory | Lost 8 parts (2p2n2u2w) 10430 | -6/Factory | Lost 3 parts (3u) 10517 | -6/Factory | Identified exit to Lower Caves 10517 | -6/Factory | Identified exit to Extension 10553 | -6/Factory | System corruption reached 10% 10866 | -6/Factory | Lost 4 parts (1p2n1u) 11009 | -6/Factory | Identified exit to Garrison 11015 | -6/Factory | Entered Garrison 11042 | -6/Garrison | Triggered checkpoint 11089 | -6/Garrison | Core integrity fell below 50% 11118 | -6/Garrison | Lost 6 parts (3n1u2w) 11251 | -6/Garrison | Garrison Relay disabled 11382 | -6/Garrison | Spotted B-75 Beast 11414 | -6/Garrison | Destroyed B-75 Beast 11770 | -6/Garrison | Triggered checkpoint 11846 | -6/Garrison | Discovered new exit (range 15) 11904 | -6/Garrison | Triggered checkpoint 11976 | -6/Garrison | Garrison Relay disabled 12106 | -6/Garrison | Triggered checkpoint 12181 | -6/Garrison | Discovered new exit (range 15) 12258 | -6/Garrison | Triggered checkpoint 12322 | -6/Garrison | Garrison Relay disabled 12408 | -6/Garrison | Triggered checkpoint 12587 | -6/Garrison | Lost 3 parts (2n1u) 12764 | -6/Garrison | Discovered new exit (range 15) 12848 | -6/Garrison | Expanded RIF knowledge: Coupler Efficiency 12998 | -6/Garrison | Entered Factory 13558 | -6/Factory | Spotted B-75 Beast 13563 | -6/Factory | Assimilated B-75 Beast with FLK Orb 13565 | -6/Factory | Core integrity fell below 20% 13605 | -6/Factory | Lost 4 parts (1p3n) 13670 | -6/Factory | Discovered new exit (range 9) 13686 | -6/Factory | Entered another Factory area 13686 | -5/Factory | Accompanied by 1 ally 13686 | -5/Factory | Evolved 2 slots: Propulsion x1, Weapon x1 14532 | -5/Factory | Destroyed Beast 5a 14763 | -5/Factory | Build established: Scavenger-Gunner 15034 | -5/Factory | System corruption reached 10% 15240 | -5/Factory | Lost 5 parts (1n1u3w) 15330 | -5/Factory | Lost 6 parts (1p2n2u1w) 15423 | -5/Factory | Discovered new exit (range 12) 15552 | -5/Factory | Entered another Factory area 15552 | -4/Factory | Evolved 2 slots: Utility x2 15689 | -4/Factory | Identified exit to DSF 15691 | -4/Factory | Entered DSF 15732 | -4/DSF | Additional patrols routed to DSF 15753 | -4/DSF | Lost 3 parts (3n) 15766 | -4/DSF | Wild Derelicts raided the area 15771 | -4/DSF | Discovered new exit (range 15) 15825 | -4/DSF | Entered Research 15825 | -3/Research | Evolved 2 slots: Propulsion x2 15941 | -3/Research | Garrison activated, responded to threat 16090 | -3/Research | Discovered new exit (range 3) 16565 | -3/Research | Found Prototype Processor 16565 | -3/Research | Identified Exp. Melee Analysis Suite 16836 | -3/Research | Build established: Mutant 16955 | -3/Research | Identified exit to Quarantine 17105 | -3/Research | Entered another Research area 17105 | -2/Research | Evolved 2 slots: Power x1, Utility x1 17494 | -2/Research | Spotted Executioner 17494 | -2/Research | Spotted Executioner 17495 | -2/Research | Cargo convoy interrupted 17586 | -2/Research | Found Imp. Powered Armor 17613 | -2/Research | Found Adv. Force Booster 17670 | -2/Research | System corruption reached 10% 17711 | -2/Research | Lost 4 parts (1p1u2w) 17839 | -2/Research | System corruption reached 30% 17844 | -2/Research | Core integrity fell below 50% 17855 | -2/Research | Spotted B-90 Cyclops 17865 | -2/Research | Core integrity fell below 20% 17866 | -2/Research | Released all parts (3) 17868 | -2/Research | Destroyed by S-43 Plague with Heavy Machine Gun Last Messages --------------- 17845_ Acquired Centrium Wheel. 17849_ System corrupted: Matter fused (-8). 17850_ Acquired Centrium Wheel. 17857_ Drone sends a signal. 17858_ Fabricator disabled. 17860_ Detecting nearby Garrison Access. 17861_ K-01 Serf collects debris. 17863_ Acquired Quantum Reactor. 17864_ System corrupted: Matter fused (-9). 17864_ Adv. Melee Analysis Suite destroyed. 17865_ K-01 Serf collects debris. 17865_ Centrium Wheel destroyed. 17866_ Exp. Melee Analysis Suite destroyed. 17866_ Released Quantum Reactor. 17866_ Released Relay Coupler [Grunt]. 17866_ Released Adv. Melee Analysis Suite. 17867_ B-90 Cyclops activates siege mode. 17868_ P-80 Master resets G-73 Enforcer, system corruption cleaned. 17868_ ALERT: Hostile activity reported, dispatching reinforcements to area. Map ----- +----------------------------------------------------+ | ?????????????????????????????????????????????????? | | ?????????????????????????????????????????????????? | | ?????????????????????????????????????????????????? | | ?????????????????????????????????????????????????? | | ?????????????????????????????????????????????????? | | ?????????????????????????????????????????????????? | | ?????????????????????????????????????????????????? | | ?????????????????????????????????????????????????? | | ?????????????????????????????????????????????????? | | ?????????????????????????????????????????????????? | | ??????????????????????????????????????????????? | | ###????????????? ?????????????????????????????? | | /???????? #????????????????????????????? | | ##???????# #????????????????????????????? | | ##???????# #????????????????????????????? | | ??????????# #???????????s????????????????? | | ! ??????????# #????????????s?sss???????????? | | ??????????# #????????????????????????????? | | ?######+### #????????????????????????????? | | ? p #????????????????????????????? | | ?? p #????????????????????????????? | | ???? #?????????? #????????????????? | | ???? p #????????? #????????????????? | | ############# #???????# ###??????????????? | | # = # p ####### #??????????????? | | # = # p [ @ = #??????????????? | | # #u #??????????????? | | # ppp g #??????????????? | | +] g u#p s #??????????????? | | # # " * !#??????????????? | | # " " # "F ## #??????????????? | | # "Y" # k** #?########??????????????? | | #### """ # g #?g?????????????????????? | | ############# R " +??gg???????????????????? | | ????????????#[ #??g????????????????????? | | ????????????# BB p #???????????????????????? | | ??????????? BB #???????????????????????? | | ??????????#### #### #???????????????????????? | | ?????????????# #??#A #???????????????????????? | | ?????????????####??# #???????????????????????? | | ???????????????????# #???????????????????????? | | ???????????????????# #???????????????????????? | | ???????????????????# #???????????????????????? | | ???????????????????? #???????????????????????? | | ????????????????????####?????????????????????????? | | ?????????????????????????????????????????????????? | | ?????????????????????????????????????????????????? | | ?????????????????????????????????????????????????? | | ?????????????????????????????????????????????????? | | ?????????????????????????????????????????????????? | +----------------------------------------------------+ Best States ------------- Heat Dissipation 139 Coolant Potential 100 Energy Generation 51 Energy Capacity 1405 Matter Stores 300 Matter Capacity 300 Sight Range 22 Robot Scan Range 20 Terrain Scan Range 16 Terrain Scan Density 10 Cloak Strength 3 Power Amplification 30 Additional Mass Support 12 Armor Coverage 600 Resistance: KI 25 Resistance: TH 30 Core Shielding 30 Weapon Shielding 33 Weapon Cycling 20 Phase Shifting 10 Evasion (%) 79 Targeting Accuracy 8 Melee Accuracy 28 Target Analysis 6 Recoil Reduction 3 Matter Filtering 30 Kinecelleration 40 Relay Coupler Types 1 Relay Coupler Value 37 Item Schematics ----------------- None Robot Schematics ------------------ None Fabricated ------------ Nothing Alien Tech Used ----------------- None Achievements -------------- None Challenges ------------ None Game ------ Seed FactoryTrapTerrabomb Manual? 0 Play Time 04:44:57 Cumulative 45.8 hours Start 2022.05.13 @ 01:58:50 End 2022.05.13 @ 16:07:46 Sessions 5 Manual Loads 0 Difficulty Rogue Special Mode None Game No. 25 Rogue 25 Adventurer 0 Explorer 0 Win Type - Total 0 Types 0/0/0/0/0/0/0/0/0 Lore% 15 Gallery% 40 Achievement% 68 Wizard Run 0 Options --------- ASCII 0 Keyboard 0 Movement Numpad Keybinds 0 Fullscreen 1 Font 24/Smallcaps Map View 76x50 Tactical HUD 1 Map Filters NONE Filters LOW_CONTRAST(13,24,33) Steam 1 RUN: b0c78f35-aa41-432d-80de-2e9ff47e95cd